bitfinex/quotes_BTCUSD_20241120
["timestamp","ask_amount","ask_price","bid_price","bid_amount"]
[1732089834742,0.16024574,92715.0,92703.0,0.10787]
[1732089834947,0.05238774,92714.0,92703.0,0.10787]
[1732089835179,0.05238774,92713.0,92701.0,0.107872]
[1732089835389,0.10786,92712.0,92705.0,0.0481]
[1732089835648,0.16024774,92712.0,92705.0,0.0481]
[1732089835881,0.2692945,92712.0,92707.0,0.0832]
[1732089838030,0.2692945,92712.0,92701.0,0.0832]
[1732089838251,0.23707168,92712.0,92701.0,0.0832]
[1732089839359,0.37277168,92712.0,92693.0,0.0008545]
[1732089839571,0.38277168,92712.0,92693.0,0.0008545]
[1732089839782,0.41497575,92712.0,92693.0,0.0008545]
[1732089840261,0.2892756,92712.0,92693.0,0.0008545]
[1732089840483,0.1714156,92712.0,92709.0,0.0832]
[1732089840728,0.13921168,92712.0,92709.0,0.0832]
[1732089841632,0.02014913,92712.0,92709.0,0.0832]
[1732089842475,0.03219734,92721.0,92709.0,0.0832]
[1732089842722,0.17138261,92720.0,92709.0,0.0832]
[1732089842934,0.107854,92718.0,92709.0,0.0832]
[1732089843159,0.12918527,92717.0,92712.0,0.0481]
[1732089843390,0.02012272,92716.0,92712.0,0.15596]
[1732089843612,0.37856255,92722.0,92712.0,0.0481]
[1732089843842,0.12918342,92721.0,92712.0,0.0481]
[1732089844049,0.02012087,92720.0,92712.0,0.15596]
[1732089844263,0.12918342,92719.0,92712.0,0.15596]
[1732089844466,0.02012087,92718.0,92713.0,0.107858]
[1732089844745,0.10906255,92719.0,92712.0,0.0481]
[1732089844746,0.10906255,92719.0,92714.0,0.107858]
[1732089844940,0.10906255,92719.0,92712.0,0.0481]
[1732089845149,0.10906255,92719.0,92713.0,0.107859]
[1732089845655,0.10906255,92719.0,92712.0,0.0481]
[1732089845862,0.10906255,92719.0,92712.0,0.15596]
[1732089846303,0.10906255,92719.0,92712.0,0.0481]
[1732089846513,0.10906255,92719.0,92712.0,0.15596]
[1732089846933,0.10906255,92719.0,92713.0,0.107859]
[1732089847381,0.10906255,92719.0,92712.0,0.15596]
[1732089847614,0.10906255,92719.0,92711.0,0.0008545]
[1732089847821,0.0017106,92719.0,92714.0,0.107857]
[1732089848029,0.0017106,92719.0,92711.0,0.0008545]
[1732089848237,0.0017106,92719.0,92715.0,0.107856]
[1732089849162,0.0017106,92719.0,92717.0,0.107854]
[1732089849373,0.0017106,92719.0,92718.0,0.107853]
[1732089849596,0.0017106,92719.0,92718.0,0.188453]
[1732089850714,0.0017106,92719.0,92718.0,0.23600993]
[1732089850942,0.0017106,92719.0,92718.0,0.35856598]
[1732089855520,0.03222898,92743.0,92738.0,0.0765]
[1732089855723,0.01,92783.0,92756.0,0.107809]
[1732089855960,0.107779,92782.0,92756.0,0.184309]
[1732089856179,0.01,92783.0,92756.0,0.11982801]
[1732089856180,0.01,92781.0,92756.0,0.11982801]
[1732089856416,0.02013443,92780.0,92756.0,0.11982801]
[1732089856646,0.01,92781.0,92756.0,0.11982801]
[1732089856647,0.01,92778.0,92756.0,0.11982801]
[1732089856835,0.02010174,92777.0,92756.0,0.11982801]
[1732089857097,0.01,92777.0,92756.0,0.11982801]
[1732089857308,0.02010171,92776.0,92756.0,0.11982801]
[1732089857532,0.01,92777.0,92756.0,0.16252413]
[1732089857739,0.01,92777.0,92756.0,0.11982801]
[1732089859008,0.01,92781.0,92756.0,0.11982801]
[1732089859225,0.01,92777.0,92756.0,0.11982801]
[1732089859693,0.01,92768.0,92751.0,0.00954]
[1732089859904,0.0483,92765.0,92751.0,0.00954]
[1732089860111,0.0483,92765.0,92756.0,0.0008549]
[1732089860839,0.01,92773.0,92756.0,0.1851639]
[1732089861064,0.0773,92780.0,92756.0,0.18732013]
[1732089861711,0.01,92779.0,92756.0,0.18732013]
[1732089862534,0.0773,92780.0,92756.0,0.18732013]
[1732089862742,0.01,92779.0,92756.0,0.18732013]
[1732089864241,0.01,92777.0,92756.0,0.11082013]
[1732089864472,0.01,92779.0,92756.0,0.0008549]
[1732089864473,0.0773,92767.0,92756.0,0.0008549]
[1732089864684,0.0483,92770.0,92756.0,0.1086639]
[1732089865307,0.0773,92773.0,92756.0,0.1086639]
[1732089865513,0.0483,92778.0,92756.0,0.1086639]
[1732089865694,0.0483,92778.0,92756.0,0.1108199]
[1732089865953,0.0483,92778.0,92756.0,0.1086639]
[1732089866560,0.0483,92778.0,92756.0,0.11570274]
[1732089866740,0.0483,92778.0,92770.0,0.107792]
[1732089866962,0.10906255,92777.0,92766.0,0.0282902]
[1732089867167,0.10906255,92777.0,92771.0,0.00703896]
[1732089867370,0.10906255,92777.0,92766.0,0.0282902]
[1732089867576,0.10906255,92777.0,92772.0,0.0070389]
[1732089867775,0.10906255,92777.0,92767.0,0.215592]
[1732089867987,0.10906255,92777.0,92767.0,0.107796]
[1732089868211,0.10906255,92777.0,92768.0,0.00703901]
[1732089868791,0.10906255,92777.0,92767.0,0.107795]
[1732089868992,0.10906255,92777.0,92769.0,0.107794]
[1732089869614,0.10906255,92777.0,92767.0,0.107796]
[1732089869782,0.10906255,92777.0,92766.0,0.0282902]
[1732089870379,0.10906255,92777.0,92766.0,0.1360872]
[1732089870621,0.10906255,92777.0,92768.0,0.107795]
[1732089870791,0.10906255,92777.0,92766.0,0.0282902]
[1732089871054,0.10906255,92777.0,92771.0,0.107791]
[1732089871427,0.10906255,92777.0,92772.0,0.10779]
[1732089871625,0.10906255,92777.0,92774.0,0.107788]
[1732089872034,0.0017098,92777.0,92776.0,0.107786]
[1732089872270,0.0017098,92777.0,92776.0,0.215572]
[1732089872897,0.0017098,92777.0,92776.0,0.292572]
[1732089873125,0.00148368,92777.0,92776.0,0.292572]
[1732089873889,0.00148368,92777.0,92776.0,0.392572]
[1732089874101,0.03202232,92800.0,92778.0,0.01]
[1732089874324,0.0763,92809.0,92786.0,0.33248698]
[1732089874530,0.03202126,92808.0,92786.0,0.38208698]
[1732089874736,0.03202126,92807.0,92786.0,0.38208698]
[1732089874866,0.0501098,92812.0,92786.0,0.38208698]
[1732089875272,0.02000964,92811.0,92786.0,0.38208698]
[1732089875511,0.0501098,92812.0,92786.0,0.38208698]
[1732089875754,0.02000708,92811.0,92786.0,0.38208698]
[1732089875951,0.02000708,92810.0,92786.0,0.38208698]
[1732089876156,0.02000708,92809.0,92786.0,0.38208698]
[1732089876370,0.0501098,92812.0,92786.0,0.38208698]
[1732089876371,0.03200913,92808.0,92786.0,0.38208698]
[1732089876534,0.0501098,92812.0,92786.0,0.38208698]
[1732089876736,0.03200985,92811.0,92786.0,0.38208698]
[1732089876978,0.03200985,92810.0,92786.0,0.38208698]
[1732089877179,0.0501098,92812.0,92786.0,0.38208698]
[1732089877180,0.03200985,92809.0,92786.0,0.38208698]
[1732089877364,0.03200985,92808.0,92786.0,0.38208698]
[1732089877569,0.0501098,92812.0,92786.0,0.38208698]
[1732089877793,0.03201281,92811.0,92786.0,0.38208698]
[1732089878010,0.0501098,92812.0,92786.0,0.38208698]
[1732089878011,0.03201281,92810.0,92786.0,0.38208698]
[1732089878219,0.03201281,92809.0,92786.0,0.38208698]
[1732089878442,0.0501098,92812.0,92786.0,0.38208698]
[1732089878848,0.107754,92804.0,92786.0,0.207774]
[1732089879045,0.107753,92805.0,92786.0,0.207774]
[1732089879179,0.02345286,92811.0,92786.0,0.207774]
[1732089879180,0.10775,92807.0,92786.0,0.207774]
[1732089879383,0.107747,92810.0,92786.0,0.207774]
[1732089879593,0.01,92811.0,92786.0,0.207774]
[1732089879594,0.01345335,92809.0,92786.0,0.207774]
[1732089879802,0.01345335,92808.0,92786.0,0.207774]
[1732089880005,0.01345335,92807.0,92786.0,0.207774]
[1732089880208,0.107748,92809.0,92786.0,0.207774]
[1732089880209,0.01345335,92806.0,92786.0,0.207774]
[1732089880411,0.01345335,92805.0,92786.0,0.207774]
[1732089880621,0.01345335,92804.0,92786.0,0.207774]
[1732089880836,0.01345335,92803.0,92786.0,0.20992927]
[1732089881084,0.107748,92809.0,92786.0,0.20992927]
[1732089881404,0.107751,92807.0,92786.0,0.207774]
[1732089881588,0.03201133,92810.0,92786.0,0.207774]
[1732089881995,0.107749,92808.0,92786.0,0.207774]
[1732089882420,0.10775,92807.0,92786.0,0.207774]
[1732089882646,0.02174524,92787.0,92786.0,0.207774]
[1732089884453,0.0017096,92787.0,92786.0,0.207774]
[1732089884711,0.0017096,92787.0,92786.0,0.20992927]
[1732089886878,0.02177878,92787.0,92786.0,0.20992927]
[1732089888074,0.02177878,92787.0,92786.0,0.207774]
[1732089889266,0.0017096,92787.0,92786.0,0.207774]
[1732089889498,0.021777,92787.0,92786.0,0.207774]
[1732089890192,0.02177707,92787.0,92786.0,0.207774]
[1732089892288,0.0017096,92787.0,92786.0,0.207774]
[1732089892488,0.02178216,92787.0,92786.0,0.207774]
[1732089895928,0.05391823,92787.0,92786.0,0.207774]
[1732089896375,0.02178216,92787.0,92786.0,0.207774]
[1732089896700,0.0539252,92787.0,92786.0,0.207774]
[1732089897480,0.05393511,92787.0,92786.0,0.207774]
[1732089898476,0.02178216,92787.0,92786.0,0.207774]
[1732089898696,0.05394735,92787.0,92786.0,0.207774]
[1732089898892,0.02178216,92787.0,92786.0,0.207774]
[1732089899095,0.02181283,92787.0,92786.0,0.207774]
[1732089900857,0.05400823,92787.0,92786.0,0.207774]
[1732089901071,0.06746183,92787.0,92786.0,0.207774]
[1732089903044,0.05400823,92787.0,92786.0,0.207774]
[1732089903922,0.02181283,92787.0,92786.0,0.207774]
[1732089904588,0.0017096,92787.0,92786.0,0.207774]
[1732089904798,0.02186682,92787.0,92786.0,0.207774]
[1732089906562,0.0017096,92787.0,92786.0,0.207774]
[1732089907002,0.02186763,92787.0,92786.0,0.207774]
[1732089908497,0.0017096,92787.0,92786.0,0.207774]
[1732089908702,0.02186632,92787.0,92786.0,0.207774]
[1732089908920,0.0017096,92787.0,92786.0,0.207774]
[1732089910422,0.0017096,92787.0,92786.0,0.107774]
[1732089910629,0.0017096,92787.0,92786.0,0.207774]
[1732089913690,0.0017096,92787.0,92786.0,0.20992935]
[1732089914765,0.0017096,92787.0,92786.0,0.33464233]
[1732089914968,0.0017096,92787.0,92786.0,0.33248698]
[1732089916954,0.0017096,92787.0,92786.0,0.3636733]
[1732089918205,0.0017096,92787.0,92786.0,0.5566075]
[1732089918859,0.0017096,92787.0,92786.0,0.60484105]
[1732089919271,0.0017096,92787.0,92786.0,0.3636733]
[1732089919816,0.0017096,92787.0,92786.0,0.47273585]
[1732089920014,0.0017096,92787.0,92786.0,0.48273585]
[1732089923732,0.0017096,92787.0,92786.0,0.49273585]
[1732089924280,0.0017096,92787.0,92786.0,0.7827455]
[1732089925105,0.0017096,92787.0,92786.0,0.49273585]
[1732089925307,0.0017096,92787.0,92786.0,0.78262115]
[1732089926569,0.0017096,92787.0,92786.0,0.78264971]
[1732089927227,0.0017096,92787.0,92786.0,0.49273585]
[1732089929784,0.0017096,92787.0,92786.0,0.78264971]
[1732089930409,0.0017096,92787.0,92786.0,0.49273585]
[1732089930647,0.0017096,92787.0,92786.0,0.49473585]
[1732089930852,0.0017096,92787.0,92786.0,0.45129642]
[1732089936911,0.0017096,92787.0,92786.0,0.36802287]
[1732089937065,0.0017096,92787.0,92786.0,0.45129642]
[1732089950452,0.0467,92805.0,92804.0,0.107753]
[1732089950684,0.0017098,92812.0,92811.0,0.107745]
[1732089950685,0.0788098,92812.0,92811.0,0.107745]
[1732089951144,0.0788098,92812.0,92811.0,0.20432565]
[1732089951594,0.0788098,92812.0,92811.0,0.107745]
[1732089952059,0.0788098,92812.0,92811.0,0.20431356]
[1732089952779,0.0788098,92812.0,92811.0,0.107745]
[1732089954199,0.0788098,92812.0,92811.0,0.15124251]
[1732089956762,0.0788098,92812.0,92811.0,0.24781107]
[1732089958847,0.0788098,92812.0,92811.0,0.15124251]
[1732089959076,0.0788098,92812.0,92811.0,0.24780572]
[1732089959754,0.0788098,92812.0,92811.0,0.15124251]
[1732089962141,0.0017098,92812.0,92811.0,0.33667084]
[1732089962374,0.0017098,92812.0,92811.0,0.33451606]
[1732089962615,0.0017098,92812.0,92811.0,0.3656558]
[1732089963119,0.0017098,92812.0,92811.0,0.48471835]
[1732089963593,0.0017098,92812.0,92811.0,0.77444249]
[1732089963831,0.0017098,92812.0,92811.0,0.48571835]
[1732089964067,0.0017098,92812.0,92811.0,0.6164919]
[1732089964561,0.0017098,92812.0,92811.0,0.6264919]
[1732089964797,0.001709,92830.0,92829.0,0.19099755]
[1732089965037,0.001709,92830.0,92829.0,0.19315175]
[1732089965337,0.16247766,92830.0,92829.0,0.4948143]
[1732089965578,0.68697766,92830.0,92829.0,0.5026601]
[1732089965828,0.68697766,92830.0,92829.0,0.56653716]
[1732089966587,0.68697766,92830.0,92829.0,0.59245392]
[1732089966808,0.68697766,92830.0,92829.0,0.59445392]
[1732089967072,0.029209,92830.0,92829.0,0.59245392]
[1732089967292,0.029209,92830.0,92829.0,0.59445392]
[1732089967810,0.029209,92830.0,92829.0,0.5026601]
[1732089968038,0.029209,92830.0,92829.0,0.53368621]
[1732089968287,0.029209,92830.0,92829.0,0.36967188]
[1732089968517,0.029209,92830.0,92829.0,0.62006496]
[1732089968754,0.029209,92830.0,92829.0,0.37967188]
[1732089969263,0.029209,92830.0,92829.0,0.47582507]
[1732089969502,0.029209,92830.0,92829.0,0.16288533]
[1732089969732,0.029209,92830.0,92829.0,0.36890826]
[1732089969967,0.029209,92830.0,92829.0,0.36675412]
[1732089970204,0.029209,92830.0,92829.0,0.27060933]
[1732089972479,0.029209,92830.0,92829.0,0.37967188]
[1732089973428,0.0008545,92845.0,92829.0,0.37967188]
[1732089973429,0.0014091,92872.0,92851.0,0.01]
[1732089973666,0.00010974,92866.0,92863.0,0.117685]
[1732089973898,0.00010974,92866.0,92863.0,0.107685]
[1732089974613,0.00010974,92866.0,92863.0,0.10983847]
[1732089974850,0.0014091,92872.0,92863.0,0.20983847]
[1732089975316,0.0014091,92872.0,92863.0,0.32890102]
[1732089975617,0.0014091,92872.0,92863.0,0.32674755]
[1732089975837,0.0014091,92872.0,92863.0,0.207685]
[1732089976053,0.0014091,92872.0,92863.0,0.3289009]
[1732089976287,0.0014091,92872.0,92863.0,0.36535163]
[1732089976513,0.0014091,92872.0,92863.0,0.40800064]
[1732089977697,0.0014091,92872.0,92863.0,0.53249428]
[1732089979111,0.0014091,92872.0,92863.0,0.4938902]
[1732089979813,0.0014091,92872.0,92863.0,0.53249428]
[1732089980268,0.0014091,92872.0,92863.0,0.4938902]
[1732089981012,0.0014091,92872.0,92863.0,0.54249428]
[1732089982163,0.0014091,92872.0,92863.0,0.5038902]
[1732089987726,0.269,92878.0,92870.0,0.01]
[1732089987727,0.1729728,92878.0,92870.0,0.01]
[1732089987935,0.1729728,92878.0,92877.0,0.207669]
[1732089991369,0.16173541,92878.0,92877.0,0.2191678]
[1732089991576,0.0809,92886.0,92878.0,0.217668]
[1732089991577,0.0003096,92880.0,92878.0,0.217668]
[1732089991803,0.0003096,92880.0,92879.0,0.21981903]
[1732089991990,0.0003096,92880.0,92879.0,0.28432827]
[1732089992241,0.0003096,92880.0,92879.0,0.28217524]
[1732089992430,0.0003096,92880.0,92879.0,0.32672855]
[1732089994011,0.0003096,92880.0,92879.0,0.33672855]
[1732089994224,0.0003096,92880.0,92879.0,0.34203621]
[1732089994450,0.0003096,92880.0,92879.0,0.34403621]
[1732089994678,0.0003096,92880.0,92879.0,0.42714074]
[1732089995337,6e-07,92880.0,92879.0,0.55294074]
[1732089995535,6e-07,92880.0,92879.0,0.50954074]
[1732089996189,6e-07,92880.0,92879.0,0.50754074]
[1732089996385,6e-07,92880.0,92879.0,0.50954074]
[1732089997284,6e-07,92880.0,92879.0,0.59264527]
[1732089997907,6e-07,92880.0,92879.0,0.54855375]
[1732089998309,6e-07,92880.0,92879.0,0.50954074]
[1732089998960,0.0014791,92894.0,92887.0,0.312057]
[1732089998961,0.00039363,92888.0,92887.0,0.312057]
[1732089999174,0.00039363,92888.0,92887.0,0.63140548]
[1732089999375,0.00039363,92888.0,92887.0,0.62940548]
[1732089999583,0.00039363,92888.0,92887.0,0.63140548]
[1732090001084,0.00039363,92888.0,92887.0,0.6757226]
[1732090001503,0.00039363,92888.0,92887.0,0.46920506]
[1732090001942,0.00039363,92888.0,92887.0,0.50821807]
[1732090002151,0.00039363,92888.0,92887.0,0.38610053]
[1732090002390,0.00039363,92888.0,92887.0,0.50821807]
[1732090002598,0.00039363,92888.0,92887.0,0.46920506]
[1732090003039,0.00039363,92888.0,92887.0,0.50821807]
[1732090003502,0.00039363,92888.0,92887.0,0.46920506]
[1732090003734,0.00039363,92888.0,92887.0,0.27703798]
[1732090004168,0.00124743,92888.0,92887.0,0.27703798]
[1732090004808,0.00124743,92888.0,92887.0,0.15703798]
[1732090005483,0.02133098,92888.0,92887.0,0.15703798]
[1732090006583,0.02133098,92888.0,92887.0,0.25703798]
[1732090006785,0.05346638,92888.0,92887.0,0.25703798]
[1732090007004,0.05346638,92888.0,92887.0,0.14938098]
[1732090007444,0.06690598,92888.0,92887.0,0.04938098]
[1732090007672,0.05346638,92888.0,92887.0,0.10506386]
[1732090007906,0.05346638,92888.0,92887.0,0.00506386]
[1732090008121,0.05346638,92888.0,92887.0,0.11272086]
[1732090008332,0.05346638,92888.0,92887.0,0.11255188]
[1732090008987,0.05346638,92888.0,92887.0,0.00489488]
[1732090009243,0.05346638,92888.0,92885.0,0.107659]
[1732090009468,0.05221895,92887.0,92886.0,0.107658]
[1732090009923,0.05221895,92887.0,92885.0,0.107659]
[1732090010143,0.02008355,92886.0,92885.0,0.107659]
[1732090010365,0.00124743,92888.0,92887.0,0.107657]
[1732090010837,0.00124743,92888.0,92877.0,0.0017076]
[1732090010838,0.01,92879.0,92877.0,0.0017076]
[1732090011066,0.107688,92860.0,92831.0,0.01]
[1732090011293,0.57459381,92860.0,92831.0,0.04349225]
[1732090011528,0.57459381,92860.0,92826.0,0.107728]
[1732090011529,0.023,92846.0,92826.0,0.107728]
[1732090011773,0.12445501,92839.0,92813.0,0.02]
[1732090011991,0.107726,92828.0,92816.0,0.107738]
[1732090012229,0.215445,92831.0,92806.0,0.01215443]
[1732090012459,0.02005641,92830.0,92806.0,0.00215443]
[1732090012674,0.107727,92827.0,92817.0,0.107738]
[1732090012911,0.10906255,92831.0,92806.0,0.00215443]
[1732090012912,0.107722,92831.0,92820.0,0.107734]
[1732090013134,0.107722,92831.0,92806.0,0.13445501]
[1732090013135,0.10906255,92831.0,92815.0,0.10774]
[1732090013361,0.28654899,92830.0,92804.0,0.01338996]
[1732090013570,0.10774,92816.0,92806.0,0.10775]
[1732090013803,0.215456,92826.0,92806.0,0.2155]
[1732090014058,0.1247,92816.0,92805.0,0.00215483]
[1732090014271,0.1247,92816.0,92792.0,0.107767]
[1732090014272,0.1247,92816.0,92791.0,0.043079]
[1732090014488,0.1247,92816.0,92802.0,0.1]
[1732090014696,0.215482,92815.0,92799.0,0.00215497]
[1732090014915,0.107742,92814.0,92801.0,0.107757]
[1732090015126,0.107742,92814.0,92802.0,0.107755]
[1732090015332,0.107743,92813.0,92803.0,0.107753]
[1732090015562,0.1247,92816.0,92801.0,0.107757]
[1732090015773,0.107744,92813.0,92801.0,0.107757]
[1732090015996,0.215484,92814.0,92799.0,0.10215497]
[1732090016226,0.107743,92814.0,92803.0,0.107754]
[1732090016882,0.1247,92816.0,92797.0,0.00215497]
[1732090017105,0.1247,92816.0,92805.0,0.107752]
[1732090017323,0.1247,92816.0,92807.0,0.10775]
[1732090017528,0.1247,92816.0,92802.0,0.107756]
[1732090017749,0.1247,92816.0,92806.0,0.107751]
[1732090018266,0.1247,92816.0,92814.0,0.107742]
[1732090018482,0.1247,92816.0,92815.0,0.107741]
[1732090018700,0.0763,92828.0,92818.0,0.107737]
[1732090018920,0.10906255,92827.0,92818.0,0.107737]
[1732090019139,0.10906255,92827.0,92820.0,0.107735]
[1732090019598,0.10906255,92827.0,92819.0,0.107735]
[1732090020028,0.10906255,92827.0,92820.0,0.107734]
[1732090020244,0.0763,92828.0,92823.0,0.107731]
[1732090021122,0.0763,92828.0,92819.0,0.107735]
[1732090021338,0.0763,92828.0,92807.0,0.10775]
[1732090021551,0.0763,92828.0,92819.0,0.107736]
[1732090021793,0.0763,92828.0,92819.0,0.107735]
[1732090022019,0.0763,92828.0,92809.0,0.215495]
[1732090022250,0.0763,92828.0,92820.0,0.107734]
[1732090022484,0.0763,92828.0,92817.0,0.00215458]
[1732090022485,0.228,92827.0,92817.0,0.00215458]
[1732090022696,0.228,92827.0,92826.0,0.107728]
[1732090022912,0.0763,92828.0,92816.0,0.107739]
[1732090023145,0.0763,92828.0,92810.0,0.1]
[1732090023146,0.18536255,92828.0,92810.0,0.1]
[1732090023381,0.215456,92827.0,92815.0,0.1]
[1732090023837,0.18536255,92828.0,92815.0,0.1]
[1732090024059,0.107728,92826.0,92815.0,0.1]
[1732090024270,0.18536255,92828.0,92811.0,0.1]
[1732090024271,0.107732,92823.0,92811.0,0.1]
[1732090024501,0.18536255,92828.0,92812.0,0.107744]
[1732090024724,0.107728,92826.0,92815.0,0.1]
[1732090024930,0.18536255,92828.0,92813.0,0.1]
[1732090025155,0.18536255,92828.0,92820.0,0.107735]
[1732090025365,0.18536255,92828.0,92815.0,0.107741]
[1732090025579,0.18536255,92828.0,92813.0,0.1]
[1732090025819,0.18536255,92828.0,92816.0,0.107738]
[1732090026504,0.18536255,92828.0,92818.0,0.107737]
[1732090028078,0.10773,92825.0,92814.0,0.107741]
[1732090028320,0.18536255,92828.0,92813.0,0.0017074]
[1732090028980,0.10773,92825.0,92814.0,0.1]
[1732090029462,0.10773,92825.0,92814.0,0.207741]
[1732090029954,0.18536255,92828.0,92815.0,0.10774]
[1732090029955,0.107728,92826.0,92815.0,0.10774]
[1732090030879,0.18536255,92828.0,92814.0,0.107742]
[1732090031106,0.18536255,92828.0,92813.0,0.0017074]
[1732090031107,0.107733,92822.0,92813.0,0.0017074]
[1732090031339,0.107729,92825.0,92813.0,0.0017074]
[1732090031553,0.0763,92828.0,92820.0,0.107735]
[1732090031778,0.0763,92828.0,92817.0,0.107737]
[1732090031779,0.0763,92828.0,92827.0,0.107727]
[1732090032710,0.0826,92837.0,92816.0,0.10774]
[1732090032954,0.19166255,92837.0,92826.0,0.107727]
[1732090033171,0.19166255,92837.0,92831.0,0.107722]
[1732090033650,0.19166255,92837.0,92826.0,0.107727]
[1732090033651,0.19166255,92837.0,92829.0,0.107724]
[1732090035148,0.19166255,92837.0,92826.0,0.107727]
[1732090035149,0.0826,92837.0,92831.0,0.107721]
[1732090035385,0.0826,92837.0,92822.0,0.107733]
[1732090035603,0.0826,92837.0,92813.0,0.0117074]
[1732090035604,0.0826,92837.0,92834.0,0.107718]
[1732090036286,0.39,92840.0,92839.0,0.107713]
[1732090036503,0.39,92840.0,92829.0,0.00215439]
[1732090036504,0.0826,92847.0,92830.0,0.215446]
[1732090036712,0.01999926,92846.0,92838.0,0.107714]
[1732090036943,0.0826,92847.0,92837.0,0.107714]
[1732090037198,0.01999923,92846.0,92839.0,0.107712]
[1732090037447,0.01999923,92846.0,92824.0,0.00215422]
[1732090037448,0.01999923,92845.0,92832.0,0.10772]
[1732090037678,0.01999923,92845.0,92831.0,0.107721]
[1732090037679,0.01999923,92844.0,92831.0,0.107721]
[1732090037911,0.01999923,92843.0,92831.0,0.107721]
[1732090038127,0.0826,92847.0,92831.0,0.107721]
[1732090038128,0.01999923,92842.0,92832.0,0.107721]
[1732090038342,0.01999923,92841.0,92834.0,0.107718]
[1732090038558,0.01999923,92840.0,92832.0,0.107721]
[1732090038774,0.01999923,92839.0,92832.0,0.107721]
[1732090038990,0.01999923,92838.0,92828.0,0.1]
[1732090039228,0.0462,92836.0,92828.0,0.1]
[1732090039459,0.01999923,92835.0,92828.0,0.1]
[1732090039701,0.0826,92832.0,92819.0,0.1]
[1732090039926,0.107725,92829.0,92819.0,0.1]
[1732090040161,0.05216531,92828.0,92819.0,0.1]
[1732090040395,0.05216531,92827.0,92823.0,0.107731]
[1732090040617,0.05216531,92826.0,92823.0,0.107731]
[1732090040852,0.05216531,92825.0,92824.0,0.10773]
[1732090041101,0.01999923,92825.0,92824.0,0.10773]
[1732090043941,0.0826,92832.0,92831.0,0.107722]
[1732090044160,0.0826,92832.0,92826.0,0.107727]
[1732090044161,0.10271165,92832.0,92826.0,0.107727]
[1732090044372,0.02011165,92831.0,92826.0,0.107727]
[1732090044589,0.02011165,92830.0,92828.0,0.107724]
[1732090044859,0.02011079,92829.0,92828.0,0.107724]
[1732090045774,0.02011079,92829.0,92820.0,0.1]
[1732090045983,0.05229447,92828.0,92820.0,0.1]
[1732090046245,0.0826,92832.0,92813.0,0.1094504]
[1732090046246,0.107728,92826.0,92813.0,0.0017074]
[1732090046469,0.215447,92830.0,92816.0,0.107739]
[1732090046470,0.05229447,92825.0,92816.0,0.107739]
[1732090046709,0.10906255,92831.0,92821.0,0.107734]
[1732090046710,0.05229447,92824.0,92821.0,0.107734]
[1732090046919,0.05229447,92823.0,92816.0,0.107739]
[1732090047134,0.10906255,92829.0,92818.0,0.107737]
[1732090047135,0.05229447,92822.0,92818.0,0.107737]
[1732090047352,0.10906255,92829.0,92813.0,0.0017074]
[1732090047353,0.05229447,92821.0,92814.0,0.107741]
[1732090047562,0.05229447,92820.0,92815.0,0.1]
[1732090047767,0.05229447,92819.0,92815.0,0.1]
[1732090047972,0.02011079,92818.0,92816.0,0.107739]
[1732090048187,0.107726,92828.0,92816.0,0.207739]
[1732090048188,0.02011079,92817.0,92816.0,0.207739]
[1732090049065,0.02012635,92817.0,92816.0,0.207739]
[1732090049512,0.0826,92832.0,92817.0,0.107738]
[1732090049742,0.0826,92832.0,92813.0,0.0017074]
[1732090049743,0.05232872,92831.0,92818.0,0.00215449]
[1732090050023,0.0826,92832.0,92827.0,0.107726]
[1732090050024,0.02012643,92830.0,92827.0,0.107726]
[1732090050248,0.02012643,92829.0,92827.0,0.107726]
[1732090050469,0.02012643,92828.0,92821.0,0.107733]
[1732090050683,0.02012643,92827.0,92823.0,0.107731]
[1732090050892,0.05233001,92826.0,92817.0,0.107738]
[1732090051110,0.298043,92832.0,92817.0,0.107738]
[1732090051111,0.05233001,92825.0,92817.0,0.107738]
[1732090051341,0.05233001,92824.0,92817.0,0.107738]
[1732090051552,0.107726,92828.0,92817.0,0.107738]
[1732090051778,0.03220653,92827.0,92816.0,0.101708]
[1732090051985,0.31481723,92832.0,92816.0,0.101708]
[1732090051986,0.05233561,92826.0,92816.0,0.101708]
[1732090052200,0.05233561,92825.0,92817.0,0.107738]
[1732090052482,0.05233561,92824.0,92817.0,0.107738]
[1732090052732,0.05233561,92823.0,92817.0,0.215476]
[1732090052949,0.02012908,92822.0,92818.0,0.107737]
[1732090053162,0.107723,92830.0,92818.0,0.107737]
[1732090053163,0.02012908,92821.0,92818.0,0.10694235]
[1732090053378,0.02012908,92820.0,92819.0,0.107736]
[1732090053814,0.02012908,92820.0,92818.0,0.10694235]
[1732090054052,0.107724,92830.0,92818.0,0.10694235]
[1732090054252,0.298043,92832.0,92816.0,0.101708]
[1732090054253,0.107728,92826.0,92816.0,0.101708]
[1732090054467,0.107731,92824.0,92816.0,0.001708]
[1732090054667,0.02013038,92823.0,92816.0,0.001708]
[1732090054879,0.02013038,92822.0,92816.0,0.001708]
[1732090055113,0.02013038,92821.0,92816.0,0.001708]
[1732090055339,0.02013038,92820.0,92816.0,0.001708]
[1732090055569,0.10906255,92829.0,92816.0,0.001708]
[1732090055819,0.0825,92817.0,92816.0,0.001708]
[1732090056070,0.21037025,92817.0,92816.0,0.001708]
[1732090056320,0.24258174,92817.0,92816.0,0.001708]
[1732090057018,0.35164429,92817.0,92816.0,0.001708]
[1732090058108,0.24390629,92817.0,92816.0,0.001708]
[1732090058341,0.35164429,92817.0,92816.0,0.001708]
[1732090058570,0.24390629,92817.0,92816.0,0.001708]
[1732090058976,0.31942244,92817.0,92816.0,0.001708]
[1732090059853,0.10262189,92817.0,92816.0,0.001708]
[1732090060106,0.02012189,92817.0,92816.0,0.001708]
[1732090060773,0.0825,92819.0,92816.0,0.001708]
[1732090060986,0.02011703,92818.0,92816.0,0.001708]
[1732090061188,0.0825,92819.0,92816.0,0.001708]
[1732090061838,0.02011678,92818.0,92816.0,0.001708]
[1732090062041,0.0825,92819.0,92816.0,0.001708]
[1732090072486,0.190236,92819.0,92816.0,0.001708]
[1732090072703,0.107738,92817.0,92816.0,0.001708]
[1732090074089,0.21680055,92817.0,92816.0,0.001708]
[1732090074306,0.26360055,92817.0,92816.0,0.001708]
[1732090080156,0.15586255,92817.0,92805.0,0.04183381]
[1732090080374,0.15586255,92817.0,92800.0,0.1]